Cogmind - Beta 14 @@@ ROGUE MODE // 2024.09.12 @ 00:08:24 Player: Trione Result: Destroyed by Autobeam Turret with Autobeam Performance ------------- Evolutions (0) 0 Regions Visited (2) 400 Robots Destroyed (47) 235 Value Destroyed (1179) 1179 Prototype IDs (0) 0 Alien Tech Used (0) 0 Bonus (0) 0 TOTAL SCORE: 1814 Bonus ------- None Cogmind --------- Core Integrity 0/250 Matter 184/300 Energy 95/100 System Corruption 2% Temperature Cool (12) Movement Treading (960) Ox10 Location -10/Subcaves Parts ------- > --- POWER (1) -------- (None) > --- PROPULSION (2) --- Light Treads > --- UTILITY (2) ------ Humpback > --- WEAPON (2) ------- Subdweller Beam Cannon Subdweller Shrapnel Launcher > --- INVENTORY (35) --- Light Treads Light Treads Makeshift Leg Improved Heat Sink Disposable Heat Sink Large Storage Unit Sensor Array Seismic Detector Seismic Detector Light Armor Plating Light Armor Plating Scrap Shield Subdweller Laser Light Assault Rifle Battle Rifle Battle Rifle Datajack Mining Laser Peak State ------------ > --- POWER ------------ Ion Engine > --- PROPULSION ------- Light Treads Light Treads > --- UTILITY ---------- Large Storage Unit Light Armor Plating > --- WEAPON ----------- Battle Rifle Subdweller Machine Gun > --- INVENTORY -------- Light Treads Light Treads Light Treads Light Treads Makeshift Leg Improved Heat Sink Disposable Heat Sink Sensor Array Seismic Detector Seismic Detector Light Armor Plating Light Assault Rifle Datajack Mining Laser [Rating: 11] Favorites ----------- Power Ion Engine Engine Ion Engine Propulsion Light Treads Treads Light Treads Utility Humpback Device Seismic Detector Storage Humpback Protection Light Armor Plating Weapon Subdweller Machine Gun Energy Gun EM Pulse Gun Energy Cannon Subdweller Beam Cannon Ballistic Gun Subdweller Machine Gun Launcher Subdweller Shrapnel Launcher Special Weapon Mining Laser Special Melee Weapon Datajack Build | -11 -10 -10 ------- Run | Yrd Mat Sub Slots Evolved . | . . . Power . | . . . Propulsion . | . . . Utility . | . . . Weapon . | . . . Parts Attached 49 | 7 24 18 Power 4 | 1 2 1 Engine 4 | 1 2 1 Core . | . . . Reactor . | . . . Propulsion 10 | 2 5 3 Treads 10 | 2 5 3 Leg . | . . . Wheel . | . . . Hover . | . . . Flight . | . . . Utility 6 | 2 3 1 Device 2 | 1 1 . Storage 3 | 1 1 1 Processor . | . . . Hackware . | . . . Protection 1 | . 1 . Artifact . | . . . Weapon 29 | 2 14 13 Energy Gun 3 | . 2 1 Energy Cannon 1 | . . 1 Ballistic Gun 15 | 2 7 6 Ballistic Cannon . | . . . Launcher 2 | . . 2 Special Weapon 7 | . 4 3 Impact Weapon . | . . . Slashing Weapon . | . . . Piercing Weapon . | . . . Special Melee Weapon 1 | . 1 . Unidentified Prototypes . | . . . Parts Lost 12 | . 5 7 Power 3 | . 1 2 Propulsion 4 | . 2 2 Utility . | . . . Weapon 5 | . 2 3 Highest Loss Streak 3 | . 3 3 To Critical Strikes . | . . . Average Slot Usage (%) 91 | . 98 89 Engine 13 | . 14 13 Treads 27 | . 26 27 Device 3 | . 12 . Storage 14 | . 14 14 Protection 3 | . 1 4 Energy Gun 4 | . 9 2 Energy Cannon 5 | . . 7 Ballistic Gun 15 | . 14 16 Special Weapon 2 | . 3 1 Peak Build Rating 11 | 7 8 11 Average Rating 9 | 5 7 10 On Entrance 5 | . 7 8 Naked Turns . | . . . Heaviest Build 221 | 12 31 221 Greatest Support 40 | 40 40 40 Greatest Overweight (x) 10 | . 1 10 Average Overweight (x) 1 | . . 1 Largest Inventory Capacity 35 | 8 15 35 Average Capacity 23 | 6 12 28 Most Carried 20 | 5 11 20 Average Carried 14 | 3 8 16 Final Capacity 35 | 8 15 35 Final Carried 19 | 5 10 19 Class Distribution -------------------- 52% | Mutant 47% | Hauler-Mutant Dominant Class ---------------- Mutant | -10/Materials Hauler-Mutant | -10/Subcaves Resources | -11 -10 -10 ----------- Run | Yrd Mat Sub Matter Collected 1331 | 300 667 364 Remotely . | . . . Salvage Created 1899 | 141 1307 451 Parts 101 | 9 59 33 Haulers Intercepted 2 | . 2 . Recyclers Shooed 1 | . 1 . Parts Field Recycled . | . . . Retrieved Matter . | . . . Parts Self-Destructed 13 | . . 13 Prevented 9 | . . 9 Kills | -11 -10 -10 ------- Run | Yrd Mat Sub Combat Hostiles Destroyed 33 | . 20 13 Guns 28 | . 20 8 AOE 3 | . . 3 Classes Destroyed 10 | 2 5 3 Worker 1 | . 1 . Tunneler 3 | 3 . . Hauler 2 | . 2 . Recycler 6 | 1 5 . Turret 1 | . . 1 Watcher 1 | . 1 . Swarmer 6 | . 3 3 Grunt 21 | . 17 4 Sentry 1 | . . 1 Subdweller 5 | . . 5 Best Kill Streak 5 | 3 5 4 Combat Bots Only 4 | . 3 4 Max Kills in Single Turn 3 | 1 1 3 Gunslinging . | . . . Exploded 2 | . . 2 Melee . | . . . Uniques/NPCs Destroyed . | . . . Combat | -11 -10 -10 -------- Run | Yrd Mat Sub Hostile Shots Fired 270 | . 99 171 Missed 96 | . 29 67 Damage Taken 2148 | . 855 1293 Core 251 | . 99 152 Absorbed by Shields . | . . . Regen/Repaired (Parts) 51 | . 51 . Core Remaining (%) 100 | 100 . . Volleys Fired 208 | 9 128 71 Largest 2 | 2 2 2 Hottest 125 | 40 100 125 Shots Fired 339 | 18 213 108 Gun 293 | 18 204 71 Cannon 1 | . . 1 Launcher 6 | . . 6 Special 39 | . 9 30 Kinetic 223 | 18 164 41 Thermal 40 | . 9 31 Explosive . | . . . Electromagnetic 76 | . 40 36 Robot Hit Streak 17 | 8 17 12 Robot Miss Streak 3 | 1 3 2 Penetration Max . | . . . Secondary Targets . | . . . Shots Hit Robots 203 | 12 135 56 Core Hits 79 | 7 48 24 Critical Kills 3 | . 1 2 Critical Parts Destroyed 1 | . 1 . Critical Strikes 4 | . 2 2 Meltdown 1 | . . 1 Destroy 3 | . 2 1 Melee Attacks . | . . . Impact . | . . . Slashing . | . . . Piercing . | . . . Sneak Attacks . | . . . Combat Hostiles . | . . . Follow-up Attacks . | . . . Damage Inflicted 3184 | 119 1801 1264 Guns 2619 | 119 1687 813 Cannons 30 | . . 30 Explosions 520 | . 99 421 Melee . | . . . Ramming 15 | . 15 . Kinetic 2263 | 119 1298 846 Thermal 129 | . 99 30 Explosive . | . . . Electromagnetic 777 | . 389 388 Impact . | . . . Slashing . | . . . Piercing . | . . . Highest Corruption 2 | . 2 2 Average Corruption 2 | . 2 2 Corruption Purged . | . . . Corruption Blocked . | . . . Effects 61 | . 7 54 Message Errors 17 | . 2 15 Matter Fused 16 | . 1 15 Heat Flow Errors 4 | . . 4 Energy Discharges 5 | . 1 4 Parts Fused 1 | . . 1 Data Loss (minor) 9 | . 1 8 Data Loss (major) 5 | . 2 3 Misfires 2 | . . 2 Alerts 2 | . . 2 Overload Shots . | . . . Overflow Damage 79 | . . 79 Projectiles . | . . . Explosions 79 | . . 79 Melee . | . . . Knockbacks . | . . . Impact . | . . . Kinetic . | . . . Secondary . | . . . Self-Inflicted Damage 128 | . 38 90 Shots 4 | . 1 3 Rammed 3 | . 3 . Targets Rammed 3 | . 3 . Kicked . | . . . Crushed . | . . . Highest Temperature 234 | . 234 192 Average Temperature 64 | . 62 73 Received Heat Transfer 969 | . 456 513 Effects 3 | . 3 . Interference 3 | . 3 . Siege Activations . | . . . Robots Corrupted 1 | . . 1 Combat Hostiles 1 | . . 1 Parts Fried 5 | . 2 3 Impact Corruptions . | . . . Robots Melted 1 | . . 1 Combat Hostiles 1 | . . 1 Parts Melted 1 | . . 1 Heat Transferred 187 | . 150 37 Parts Sabotaged . | . . . Parts Stolen . | . . . Parts Stripped . | . . . Power Chain Reactions 2 | . 2 . Alert | -11 -10 -10 ------- Run | Yrd Mat Sub Peak Influence 369 | 20 369 . Initial 13 | . 13 . Average 156 | 7 166 . Maximum Alert Level 1 | . 1 . Low Security (%) 71 | 100 69 . Level 1 28 | . 30 . Level 2 . | . . . Level 3 . | . . . Level 4 . | . . . Level 5 . | . . . High Security . | . . . Max Security . | . . . Squads Dispatched 6 | . 6 . Investigation 4 | . 4 . Extermination . | . . . Reinforcement 2 | . 2 . Assault . | . . . Garrison . | . . . Intercept . | . . . Searches Triggered . | . . . Construction Impeded . | . . . Haulers Reinforced . | . . . Active Scanning Responses . | . . . Cargo Convoy Interrupts . | . . . Stealth | -11 -10 -10 --------- Run | Yrd Mat Sub Distress Signals 6 | . 6 . Communications Jammed . | . . . Distress Signals . | . . . Times Spotted 53 | . 38 15 Peak Tracking Total 5 | . 5 5 Tactical Retreats 7 | . 4 3 Traps | -11 -10 -10 ------- Run | Yrd Mat Sub Traps Triggered 4 | . 4 . Indirectly . | . . . Trap Hack Attempts 2 | . 2 . Triggered . | . . . Disarmed 1 | . 1 . Reprogrammed . | . . . Reused . | . . . Traps Extracted . | . . . Installed . | . . . Triggered . | . . . Machines | -11 -10 -10 ---------- Run | Yrd Mat Sub Machines Disabled 4 | . . 4 Max in Single Turn 4 | . . 4 Machines Repaired . | . . . Machines Dismantled . | . . . Machines Sabotaged . | . . . Overloaded Fab Kills . | . . . Hacking | -11 -10 -10 --------- Run | Yrd Mat Sub Machines Accessed 10 | . 10 . Terminals 7 | . 7 . Fabricators . | . . . Repair Stations 1 | . 1 . Recycling Units 2 | . 2 . Scanalyzers . | . . . Garrison Access . | . . . Total Hacks 22 | . 22 . Successful 17 | . 17 . Failed 5 | . 5 . Catastrophic . | . . . Database Lockouts . | . . . Manual 18 | . 18 . Terminals 17 | . 17 . Fabricators . | . . . Repair Stations 2 | . 2 . Recycling Units 3 | . 3 . Scanalyzers . | . . . Garrison Access . | . . . Terminal Hacks 4 | . 4 . Terminal Index 1 | . 1 . Unreport Threat 1 | . 1 . Locate Traps 1 | . 1 . Zone Layout 1 | . 1 . Fabricator Hacks . | . . . Repair Station Hacks 2 | . 2 . Scan Component 1 | . 1 . Repair 1 | . 1 . Recycling Unit Hacks . | . . . Scanalyzer . | . . . Garrison Access Hacks . | . . . Unauthorized Hacks 10 | . 10 . Terminals 8 | . 8 . Track 1 | . 1 . Assimilate 1 | . 1 . Botnet 4 | . 4 . Disrupt 1 | . 1 . Operators 1 | . 1 . Fabricators . | . . . Repair Stations . | . . . Recycling Units 2 | . 2 . Tunnel 2 | . 2 . Scanalyzers . | . . . Garrison Access . | . . . Data Cores Recovered . | . . . Used . | . . . Hacking Detections 9 | . 9 . Full Trace Events . | . . . Feedback Events . | . . . Feedback Blocked . | . . . Robot Schematics Acquired . | . . . Robots Built . | . . . Authchips . | . . . Time . | . . . Total Robot Build Rating . | . . . Part Schematics Acquired . | . . . Parts Built . | . . . Authchips . | . . . Time . | . . . Total Part Build Rating . | . . . Parts Repaired 1 | . 1 . Time 26 | . 26 . Parts Recycled . | . . . Recycled Matter . | . . . Retrieved Matter . | . . . Retrieved Components . | . . . Parts Scanalyzed . | . . . Part Schematics Acquired . | . . . Parts Damaged . | . . . Bothacking | -11 -10 -10 ------------ Run | Yrd Mat Sub Used RIF Installer . | . . . Robots Hacked . | . . . Non-combat . | . . . Combat . | . . . Robot Hacks Applied . | . . . Relay Couplers Released . | . . . Fabnet Peak Effective % . | . . . Robots Rewired . | . . . Allies Hacked . | . . . Hacks Repelled . | . . . Allies | -11 -10 -10 -------- Run | Yrd Mat Sub Total Allies . | . . . Largest Group . | . . . Highest-Rated Group . | . . . Highest-Rated Ally . | . . . Total Orders . | . . . Ally Attacks . | . . . Total Damage . | . . . Kills . | . . . Allies Corrupted . | . . . Allies Melted . | . . . Intel | -11 -10 -10 ------- Run | Yrd Mat Sub Robot Analysis Total . | . . . Derelict Logs Recovered 2 | . . 2 Drone Launches . | . . . Drone Recoveries . | . . . Exploration | -11 -10 -10 ------------- Run | Yrd Mat Sub Turns Passed 6394 | 123 1810 4461 Spaces Moved 2148 | 55 784 1309 Core 5 | 5 . . Treads 2143 | 50 784 1309 Legs . | . . . Wheels . | . . . Hover . | . . . Flight . | . . . Fastest Speed 50 | 50 160 160 Average Speed 258 | 150 165 319 Slowest Speed 960 | 160 240 960 Overloaded Moves . | . . . Propulsion Burnouts . | . . . Robots Hopped . | . . . Cave-ins Triggered . | . . . Exploration Rate (%) 57 | 4 98 70 Regions Visited 2 Branch Regions 1 Pre-discovered Areas 3 | . 2 1 Known Exits Taken . | . . . Unknown Exits Taken 2 | 1 1 . Scrap Searched 3 | . . 3 Spaces Dug 16 | . 6 10 Terrain Destroyed 89 | . 17 72 Melee . | . . . Projectile 20 | . 9 11 AOE 69 | . 8 61 Terrain Rammed . | . . . Walls Destroyed . | . . . Machines Disabled . | . . . Actions | -11 -10 -10 --------- Run | Yrd Mat Sub Total 2563 | 76 1063 1424 Wait 103 | . 103 . Move 2146 | 54 783 1309 Hop . | . . . Pick Up 43 | 6 14 23 Fast Attach 11 | 6 4 1 Attach 11 | 1 5 5 Detach 1 | . . 1 Swap 27 | . 15 12 Drop 8 | . 6 2 Fire 208 | 9 128 71 Melee . | . . . Ram . | . . . Kick . | . . . Crush 3 | . 3 . Escape Stasis . | . . . Rewire . | . . . Trap 2 | . 2 . Miscellaneous . | . . . Route ------- -11/Scrapyard -10/Materials (discovered 6 exits: [*Mat x3] / [*Min x2] / [*Sub]) -10/Subcaves (discovered 2 exits: [*Mat] / Rec) History --------- Turn | Location | Event 36 | -11/Scrapyard | Discovered new exit (range 15) 124 | -11/Scrapyard | Entered Materials 305 | -10/Materials | Build established: Mutant 402 | -10/Materials | Discovered new exit (range 8) 690 | -10/Materials | Discovered new exit (range 12) 1043 | -10/Materials | Lost 3 parts (2n1w) 1063 | -10/Materials | Discovered new exit (range 16) 1226 | -10/Materials | Discovered new exit (range 9) 1513 | -10/Materials | Discovered new exit (range 9) 1674 | -10/Materials | Repaired Lgt. Treads 1914 | -10/Materials | Discovered new exit (range 10) 1934 | -10/Materials | Entered Subcaves 1935 | -10/Subcaves | Shifting Twisted Machinery released Sub. Machine Gun 1936 | -10/Subcaves | Shifting Twisted Machinery released Mak. Leg 1936 | -10/Subcaves | Identified exit to Recycling 2073 | -10/Subcaves | Core integrity fell below 50% 2300 | -10/Subcaves | Learned location of Zion (-6) 2514 | -10/Subcaves | Ambushed by Subdwellers from Twisted Machinery 3093 | -10/Subcaves | A swath of the cavern ceiling suddenly collapsed 3415 | -10/Subcaves | A swath of the cavern ceiling suddenly collapsed 3665 | -10/Subcaves | Build established: Hauler-Mutant 5771 | -10/Subcaves | Discovered new exit (range 10) 6277 | -10/Subcaves | Ambushed by Subdweller buried in earth 6288 | -10/Subcaves | Core integrity fell below 20% 6324 | -10/Subcaves | Lost 3 parts (1p2n) 6395 | -10/Subcaves | Destroyed by Autobeam Turret with Autobeam Last Messages --------------- 06231_ S-10 Pest destroyed. 06234_ Subatomizers dissect the Lgt. Ion Engine. 06235_ S-10 Pest destroyed. 06235_ Destroyed Lgt. Ion Engine. 06235_ S-10 Pest destroyed. 06241_ Lgt. Ion Engine fries itself beyond repair. 06277_ Ion Engine destroyed. 06277_ Destroyed Ion Engine. 06278_ US-NIT(R): "NOSTUCKSUB!" 06285_ System corrupted: Matter fused (-10). 06285_ Lgt. Treads destroyed. 06292_ US-NIT(R) suffers critical hit (Meltdown). 06292_ Sub. Optics melted. 06293_ Lgt. Treads destroyed. 06311_ Subatomizers dissect the Sub. Machine Gun. 06314_ Acquired Scrap Shield. 06324_ Subatomizers dissect the Sub. Machine Gun. 06335_ Acquired 45 matter. 06346_ Subatomizers dissect the Sub. Machine Gun. 06383_ Sub. Machine Gun destroyed. Map ----- +----------------------------------------------------+ | #???????????#####??????# ""##?# "" # | | ##???????????# ##?????# < ### ## | | #????????????# ##???## " ### ### #? | | ?????????????# ##### ### "" #### ###?###? | | ????????????## # ##?#" #?###??????? | | ???????????## # ##??# " #????????? | | ??????????## # ### #???# "#???????? | | ??????????# # ## #??### ######???????? | | ??????????# # # #? ######????????????? | | ??????????# ## ## ##? #?????????????????? | | ??????????# # # #?# #?????????????????? | | ??????????#### ## #?????????????????? | | ???????????### # #??????????????????? | | ???????????# ### ###??????????????????? | | ???????????# ### #????????????????????? | | ???????????## ##???????????????????? | | ????????????# ##??????????????????? | | ????????????# #??????????????????? | | ????????????# #??????????????????? | | ????????????## ##??????????????????? | | ?????????????#### ## #???????????????????? | | ????????????????###### =####?????????????????? | | ??????????????????## ; ##????????????????? | | ??????????# ?????## [ #????????????????? | | ???????????# ## #????????????????? | | ???????????# @ ;;#????????????????? | | ???????????# ?????????? | | ???????????# % % ????????? | | ???????????# % ?????????? | | ???????????# % ?>???????? | | ???????????## ## ;; # t??????????? | | ????????????# ?## %####### ??????????? | | ????????????# ???# ??????? ; ??????????? | | ????????????##???? ??????? #; ; ???????????? | | ?????????????????## ???????# ###;;;???????????? | | ??????????????????# ????????####???#????????????? | | ??????????????????% ????????????????????????????? | | ?????????????????? ?????????????????????????????? | | ????????????????? #?????????????????????????????? | | ????????????????? ??????????????????????????????? | | ?????????????????? ??????????????????? ##????????? | | ??????????????????????????????????????? ????????? | | ??????????????????????????????????????? ????????? | | ??????????????????????????????????????? #???????? | | ???????????????????????????????????????? #??????? | | ???????????????????????????????##??????? ??????? | | ???????????????????????????????# #?????? ##????? | | ???????????????????????????????? ##????? #????? | | ????????????????????????????????? #???? #????? | | ?????????????????????????????????? #???# #????? | +----------------------------------------------------+ Best States ------------- Heat Dissipation 25 Energy Generation 10 Energy Capacity 250 Matter Stores 300 Matter Capacity 300 Sight Range 16 Terrain Scan Density 10 Armor Coverage 150 Evasion (%) 40 Recoil Reduction 2 Item Schematics ----------------- None Robot Schematics ------------------ None Fabricated ------------ Nothing Alien Tech Used ----------------- None Achievements -------------- None Challenges ------------ None Game ------ Seed AluminumPlasmaReplica Manual? 0 Play Time 00:30:01 Cumulative 1335.6 hours Start 2024.09.11 @ 23:27:29 End 2024.09.12 @ 00:08:24 Sessions 1 Manual Loads 0 Difficulty Rogue Special Mode None Game No. 480 Rogue 480 Adventurer 0 Explorer 0 Win Type - Total 30 Types 14/2/8/0/0/0/6/0/0 Lore% 79 Gallery% 90 Achievement% 85 Wizard Run 0 Options --------- Layout 1 ASCII 0 Keyboard 0 Movement Vi Keybinds 0 Fullscreen 0 Font 14/CherryShadow Map View 64x42 Zoom Use 0% Tactical HUD 1 Map Filters NONE Filters NONE Steam 1 RUN: 1097cd40-40d0-4211-85d3-df653a7ca051